bitfinex-derivatives/quotes_SOLF0:USTF0_20220106
["timestamp","ask_amount","ask_price","bid_price","bid_amount"]
[1641459316485,6.69366445,149.32,149.23,27.66479]
[1641459316486,15.4612022,149.3,149.24,1.37061245]
[1641459317085,15.4612022,149.3,149.23,27.66479]
[1641459318088,15.4612022,149.3,149.24,4.0]
[1641459318388,15.4612022,149.3,149.24,5.37066427]
[1641459319086,15.4612022,149.3,149.24,1.37066427]
[1641459319487,15.4612022,149.3,149.23,27.66479]
[1641459319688,12.1072446,149.3,149.29,27.66479]
[1641459319987,3.3539576,149.34,149.29,27.66479]
[1641459319988,15.4612022,149.34,149.29,27.66479]
[1641459320791,3.3539576,149.35,149.29,27.66479]
[1641459320990,3.3539576,149.35,149.29,20.10629212]
[1641459325597,37.75926542,149.37,149.3,1.37017533]
[1641459325797,53.22046762,149.38,149.3,1.37017533]
[1641459326399,37.75926542,149.37,149.29,83.10669212]
[1641459326697,4.0,149.36,149.28,27.66479]
[1641459326898,4.0,149.35,149.26,65.283]
[1641459327098,4.0,149.34,149.21,136.8313]
[1641459327298,67.51,149.36,149.21,205.2944]
[1641459327599,4.0,149.31,149.21,136.289]
[1641459327800,31.66479,149.32,149.22,27.66479]
[1641459328001,27.66479,149.32,149.22,27.66479]
[1641459328801,53.22046762,149.31,149.23,1.36980539]
[1641459330304,15.4612022,149.31,149.23,1.36980539]
[1641459331104,3.3539576,149.31,149.23,1.36980539]
[1641459331307,3.3539576,149.31,149.23,8.16918262]
[1641459332607,4.71911688,149.27,149.23,8.16918262]
[1641459333509,4.71911688,149.28,149.23,8.16918262]
[1641459333706,4.71911688,149.28,149.26,27.66479]
[1641459335109,1.688e-05,149.28,149.26,27.66479]
[1641459335308,3.3539576,149.32,149.26,27.66479]
[1641459335708,3.3539576,149.32,149.26,55.32958]
[1641459335911,15.43205138,149.37,149.27,8.16918262]
[1641459336111,15.43205138,149.37,149.28,67.3768]
[1641459337208,19.43205138,149.37,149.28,67.3768]
[1641459337410,15.43205138,149.37,149.29,1.36980539]
[1641459337916,4.0,149.35,149.29,1.36980539]
[1641459338312,4.0,149.36,149.29,1.36980539]
[1641459338714,15.43205138,149.37,149.29,1.36980539]
[1641459339113,3.3539576,149.35,149.29,1.36980539]
[1641459339913,3.3539576,149.36,149.29,29.03459539]
[1641459340414,4.0,149.35,149.29,29.03459539]
[1641459340616,7.3539576,149.36,149.29,1.36980539]
[1641459340914,7.3539576,149.36,149.28,67.3768]
[1641459341114,37.75926542,149.36,149.28,67.3768]
[1641459341315,41.75926542,149.36,149.28,67.3768]
[1641459341514,37.75926542,149.36,149.28,67.3768]
[1641459341915,41.11322302,149.35,149.28,67.3768]
[1641459342115,4.0,149.33,149.26,27.66479]
[1641459342416,6.69411253,149.31,149.26,27.66479]
[1641459343516,10.69411253,149.31,149.26,27.66479]
[1641459343816,3.3539576,149.3,149.26,27.66479]
[1641459345117,4.0,149.28,149.17,136.0555]
[1641459345315,4.0,149.27,149.17,136.0555]
[1641459345717,3.3539576,149.3,149.17,136.0555]
[1641459345916,27.66479,149.25,149.17,163.72029]
[1641459346117,27.66479,149.25,149.17,96.52879]
[1641459346819,27.66479,149.25,149.18,1.36989316]
[1641459348421,15.43205138,149.24,149.18,1.36989316]
[1641459349423,3.3539576,149.24,149.18,1.36989316]
[1641459350020,3.3539576,149.24,149.2,27.66479]
[1641459350422,15.45063742,149.26,149.2,27.66479]
[1641459351427,15.45063742,149.29,149.21,1.36989316]
[1641459352025,15.45063742,149.29,149.24,27.66479]
[1641459352225,15.45063742,149.29,149.24,34.25979]
[1641459352424,3.3539576,149.29,149.24,34.25979]
[1641459353327,3.3539576,149.29,149.24,27.66479]
[1641459353727,3.3539576,149.29,149.25,1.36989316]
[1641459355930,15.44466242,149.32,149.24,5.746]
[1641459356130,53.20392784,149.32,149.27,27.66479]
[1641459356331,53.20392784,149.32,149.27,33.18679]
[1641459357032,15.44466242,149.32,149.27,33.18679]
[1641459358030,15.44466242,149.32,149.27,60.85158]
[1641459358230,41.11322302,149.36,149.28,1.37179443]
[1641459359032,41.11322302,149.36,149.29,4.0]
[1641459359232,37.75926542,149.35,149.29,4.0]
[1641459359831,37.75926542,149.35,149.3,4.0]
[1641459360032,37.75926542,149.35,149.34,27.66479]
[1641459360836,3.3539576,149.39,149.34,27.66479]
[1641459361842,37.75926542,149.39,149.34,27.66479]
[1641459362944,37.75926542,149.38,149.34,27.66479]
[1641459363544,37.75926542,149.38,149.32,27.66479]
[1641459363944,37.75926542,149.39,149.32,27.66479]
[1641459364145,41.75926542,149.39,149.32,27.66479]
[1641459364545,4.0,149.38,149.32,27.66479]
[1641459364747,37.75926542,149.37,149.29,27.66479]
[1641459365648,41.75926542,149.37,149.29,27.66479]
[1641459365848,37.75926542,149.36,149.29,27.66479]
[1641459368448,37.75926542,149.37,149.3,1.3718524]
[1641459369248,3.3539576,149.38,149.3,1.3718524]
[1641459369249,37.75926542,149.38,149.3,1.3718524]
[1641459369451,41.75926542,149.38,149.3,1.3718524]
[1641459370149,48.4500188,149.38,149.3,1.3718524]
[1641459370450,41.11322302,149.37,149.3,1.3718524]
[1641459372049,41.11322302,149.37,149.32,27.66479]
[1641459372250,41.11322302,149.37,149.32,34.62579]
[1641459372453,37.75926542,149.38,149.32,34.62579]
[1641459372652,37.75926542,149.38,149.33,4.0]
[1641459373051,37.75926542,149.38,149.34,4.0]
[1641459373451,37.75926542,149.38,149.35,4.0]
[1641459373651,37.75926542,149.38,149.35,7.072]
[1641459373852,15.44466242,149.4,149.35,7.072]
[1641459374252,15.44466242,149.4,149.37,27.66479]
[1641459375153,3.3539576,149.42,149.37,27.66479]
[1641459380758,3.3539576,149.42,149.39,4.0]
[1641459380958,3.3539576,149.42,149.39,10.576]
[1641459381159,29.22151073,149.46,149.39,10.576]
[1641459381358,29.22151073,149.46,149.39,6.576]
[1641459382158,15.43847169,149.46,149.38,63.8041]
[1641459382360,25.30247169,149.46,149.38,63.8041]
[1641459382561,25.30247169,149.46,149.38,56.25072475]
[1641459382758,21.30247169,149.46,149.38,56.25072475]
[1641459383160,35.08551073,149.46,149.38,56.25072475]
[1641459384261,17.95470482,149.46,149.38,60.25072475]
[1641459384462,12.09070482,149.46,149.38,60.25072475]
[1641459386264,12.09070482,149.46,149.41,27.66479]
[1641459386463,12.09070482,149.46,149.41,34.75379]
[1641459387963,12.09070482,149.46,149.41,27.66479]
[1641459394069,4.82e-06,149.46,149.43,4.0]
[1641459394270,12.62280928,149.48,149.44,4.0]
[1641459394573,12.62280928,149.48,149.45,27.66479]
[1641459394771,12.62280928,149.48,149.45,31.66479]
[1641459394971,37.75625507,149.5,149.45,31.66479]
[1641459395171,37.75625507,149.5,149.45,27.66479]
[1641459396474,4.71838971,149.47,149.45,55.32958]
[1641459397475,4.71838971,149.46,149.45,27.66479]
[1641459398677,37.75625507,149.53,149.45,27.66479]
[1641459398978,27.66479,149.54,149.45,27.66479]
[1641459398979,37.75625507,149.5,149.45,27.66479]
[1641459399681,37.75625507,149.51,149.45,27.66479]
[1641459400280,37.75625507,149.51,149.45,34.51979]
[1641459402183,4.71864533,149.46,149.45,34.51979]
[1641459403082,4.71864533,149.48,149.45,34.51979]
[1641459404385,4.71864533,149.48,149.47,27.66479]
[1641459404687,4.533e-05,149.48,149.47,27.66479]
[1641459405086,37.75625507,149.54,149.47,27.66479]
[1641459406086,37.75625507,149.54,149.45,6.855]
[1641459406087,4.0,149.52,149.45,6.855]
[1641459406285,4.0,149.52,149.41,5.529]
[1641459406487,4.0,149.52,149.43,27.66479]
[1641459406685,34.34883518,149.53,149.43,27.66479]
[1641459406686,4.0,149.48,149.43,27.66479]
[1641459406886,4.0,149.48,149.4,27.66479]
[1641459407087,10.68538575,149.5,149.4,27.66479]
[1641459407689,48.44164082,149.5,149.4,27.66479]
[1641459408590,37.75625507,149.48,149.37,31.66479]
[1641459408792,37.75625507,149.48,149.42,4.0]
[1641459409091,37.75625507,149.48,149.43,4.0]
[1641459409290,37.75625507,149.48,149.42,10.826]
[1641459409690,37.75625507,149.48,149.43,4.0]
[1641459409891,31.83625507,149.48,149.42,6.826]
[1641459410091,56.79076986,149.52,149.42,6.826]
[1641459410291,91.0,149.54,149.42,6.826]
[1641459410494,122.66479,149.54,149.46,27.66479]
[1641459410690,118.66479,149.54,149.46,27.66479]
[1641459410891,4.0,149.53,149.46,27.66479]
[1641459411093,122.66479,149.54,149.46,27.66479]
[1641459411489,118.66479,149.54,149.46,27.66479]
[1641459412690,122.66479,149.54,149.46,27.66479]
[1641459413091,4.0,149.53,149.46,27.66479]
[1641459413892,4.0,149.52,149.46,27.66479]
[1641459414594,4.0,149.51,149.46,27.66479]
[1641459414892,118.66479,149.54,149.46,27.66479]
[1641459415093,4.0,149.52,149.43,27.66479]
[1641459416898,29.1710697,149.53,149.43,27.66479]
[1641459417096,4.0,149.52,149.43,32.24279]
[1641459417296,4.0,149.5,149.43,4.578]
[1641459417497,4.0,149.49,149.43,4.578]
[1641459417699,6.68627975,149.48,149.43,4.578]
[1641459417899,4.0,149.46,149.39,68.871]
[1641459418098,4.0,149.45,149.32,67.4562]
[1641459418299,10.68806849,149.44,149.32,135.8181]
[1641459418499,4.0,149.43,149.31,56.79076986]
[1641459418698,27.66479,149.43,149.35,27.66479]
[1641459419298,6.68806849,149.44,149.35,6.858]
[1641459419498,27.66479,149.45,149.35,6.858]
[1641459419698,31.66479,149.45,149.35,6.858]
[1641459419898,27.66479,149.45,149.35,6.858]
[1641459420099,27.66479,149.45,149.35,10.858]
[1641459420399,4.0,149.51,149.36,4.0]
[1641459420598,31.66479,149.52,149.4,4.0]
[1641459420799,27.66479,149.52,149.41,67.3457]
[1641459420999,29.17820538,149.51,149.41,67.3457]
[1641459422403,15.40885845,149.51,149.42,1.37573566]
[1641459424808,15.40885845,149.51,149.42,8.19071314]
[1641459430111,4.0,149.49,149.42,8.19071314]
[1641459430514,4.0,149.48,149.42,8.19071314]
[1641459430912,7.34382905,149.48,149.42,6.81497748]
[1641459431114,7.34382905,149.48,149.4,1.37573566]
[1641459431115,7.34382905,149.48,149.4,8.19071314]
[1641459432112,7.34382905,149.48,149.4,1.37573566]
[1641459432313,3.34382905,149.47,149.4,1.37573566]
[1641459432714,7.34382905,149.47,149.4,1.37573566]
[1641459432913,4.0,149.46,149.4,1.37573566]
[1641459433913,3.34382905,149.45,149.4,1.37573566]
[1641459434715,3.34382905,149.46,149.4,1.37573566]
[1641459434916,3.34382905,149.46,149.4,5.93473566]
[1641459435317,7.34382905,149.46,149.4,5.93473566]
[1641459435517,49.8182822,149.48,149.41,1.37573566]
[1641459435518,7.34382905,149.47,149.41,1.37573566]
[1641459435919,3.34382905,149.47,149.41,1.37573566]
[1641459436917,3.34382905,149.46,149.4,1.37573566]
[1641459437818,53.16211125,149.51,149.4,8.19070836]
[1641459438019,53.16211125,149.51,149.4,12.19070836]
[1641459438218,53.16211125,149.51,149.41,4.0]
[1641459438421,53.16211125,149.51,149.4,8.19070836]
[1641459438819,53.16211125,149.51,149.43,27.66479]
[1641459439019,15.40885845,149.52,149.43,32.21379]
[1641459440122,15.40885845,149.52,149.44,8.19070836]
[1641459440322,15.40885845,149.52,149.44,70.98600836]
[1641459441322,19.40885845,149.52,149.44,70.98600836]
[1641459441523,15.40885845,149.53,149.44,70.98600836]
[1641459441724,4.0,149.52,149.44,70.98600836]
[1641459442623,15.40885845,149.53,149.44,70.98600836]
[1641459442923,19.40885845,149.53,149.44,70.98600836]
[1641459443127,15.40885845,149.53,149.44,64.17103566]
[1641459443324,3.34382905,149.51,149.45,1.37573566]
[1641459444123,3.34134137,149.52,149.45,1.37573566]
[1641459444924,15.40637077,149.53,149.44,62.7953]
[1641459445724,41.09459417,149.54,149.44,62.7953]
[1641459445924,41.09459417,149.54,149.45,1.37613696]
[1641459446727,3.34134137,149.54,149.45,6.81474559]
[1641459447233,3.34134137,149.54,149.45,10.81474559]
[1641459448332,3.34134137,149.54,149.45,12.19090605]
[1641459448734,3.34134137,149.54,149.46,27.66479]
[1641459449434,3.34134137,149.54,149.46,32.12979]
[1641459449836,3.34134137,149.54,149.47,8.19090605]
[1641459450635,3.34134137,149.54,149.47,1.37616046]
[1641459451437,3.34134137,149.54,149.46,32.12979]
[1641459451935,7.34134137,149.54,149.46,32.12979]
[1641459452134,3.34134137,149.54,149.46,27.66479]
[1641459452334,4.0,149.52,149.47,1.37622124]
[1641459452534,7.34134137,149.54,149.47,1.37622124]
[1641459452734,31.66479,149.53,149.47,1.37622124]
[1641459452934,31.00613137,149.53,149.47,1.37622124]
[1641459453734,35.00613137,149.53,149.47,1.37622124]
[1641459453937,3.34134137,149.52,149.46,27.66479]
[1641459454635,15.39691121,149.52,149.47,1.37613312]
[1641459455839,15.39691121,149.52,149.46,32.14179]
[1641459457641,15.39691121,149.52,149.47,1.37616007]
[1641459458342,15.39691121,149.52,149.46,32.14179]
[1641459458544,15.39691121,149.55,149.46,32.14179]
[1641459459443,15.39691121,149.55,149.47,1.37627385]
[1641459459945,15.39691121,149.55,149.46,32.14179]
[1641459461445,15.39691121,149.55,149.47,1.37628203]
[1641459462245,15.39691121,149.55,149.47,8.19091497]
[1641459462646,15.39691121,149.55,149.48,4.0]
[1641459462845,15.39691121,149.55,149.51,27.66479]
[1641459463044,15.39691121,149.55,149.51,34.80779]
[1641459464446,15.39691121,149.58,149.52,1.37628203]
[1641459465446,4.71570605,149.54,149.51,27.66479]
[1641459466647,4.71591832,149.53,149.52,1.37646494]
[1641459467450,19.39691121,149.58,149.49,63.6377]
[1641459467651,4.0,149.57,149.49,63.6377]
[1641459467850,19.39691121,149.58,149.49,63.6377]
[1641459468252,4.71610206,149.53,149.5,1.37642819]
[1641459469152,12.05556984,149.58,149.5,1.37642819]
[1641459469355,4.7160963,149.51,149.5,1.37642819]
[1641459470156,4.71591532,149.52,149.46,100.03449]
[1641459470356,4.71591532,149.52,149.47,8.19098386]
[1641459470955,15.3952368,149.58,149.47,8.19098386]
[1641459471758,15.3952368,149.58,149.47,15.18898386]
[1641459472356,4.71558617,149.53,149.47,15.18898386]
[1641459472558,4.71558617,149.53,149.49,4.0]
[1641459472958,4.71558617,149.53,149.5,27.66479]
[1641459473158,15.3952368,149.58,149.5,34.63479]
[1641459473359,15.3952368,149.58,149.5,36.01125554]
[1641459474759,4.71516371,149.54,149.51,1.37646554]
[1641459475559,15.3952368,149.58,149.51,1.37646554]
[1641459475760,15.3952368,149.58,149.51,68.17526554]
[1641459476560,4.71547362,149.53,149.51,68.17526554]
[1641459476762,4.71547362,149.53,149.52,1.37646554]
[1641459476961,4.71547362,149.53,149.52,8.28146554]
[1641459477561,4.71519958,149.56,149.52,8.28146554]
[1641459478763,27.66479,149.59,149.52,8.28146554]
[1641459478963,27.66479,149.59,149.53,1.37646554]
[1641459479765,4.71525055,149.55,149.53,1.37646554]
[1641459481064,31.66479,149.59,149.52,6.905]
[1641459482164,4.71550105,149.54,149.53,1.37654839]
[1641459483369,3.33895266,149.58,149.51,6.81445935]
[1641459484567,3.33895266,149.58,149.5,60.70058]
[1641459484766,4.7156161,149.53,149.51,1.37652539]
[1641459485767,15.38693862,149.58,149.48,64.505]
[1641459486166,19.38693862,149.58,149.48,64.505]
[1641459486969,19.38693862,149.58,149.48,69.811]
[1641459487170,4.71589517,149.5,149.49,1.37646957]
[1641459488171,4.71587252,149.51,149.48,5.306]
[1641459488672,4.71587252,149.51,149.47,27.66479]
[1641459489073,15.38693862,149.55,149.49,1.37647335]
[1641459489774,19.38693862,149.55,149.49,1.37647335]
[1641459489974,4.0,149.54,149.46,68.9197]
[1641459490178,4.71589547,149.51,149.48,1.37646951]
[1641459491277,4.0,149.53,149.48,1.37646951]
[1641459491577,4.71638344,149.49,149.47,1.37646951]
[1641459492577,4.71633756,149.5,149.46,8.19095571]
[1641459493779,4.71636548,149.49,149.46,12.55795571]
[1641459494679,4.71598338,149.51,149.47,1.37638109]
[1641459495981,3.33998997,149.55,149.47,1.37638109]
[1641459496382,7.33998997,149.55,149.47,1.37638109]
[1641459496782,3.33998997,149.55,149.47,1.37638109]
[1641459497483,4.71581715,149.51,149.47,1.37638109]
[1641459497684,4.71581715,149.51,149.46,8.19095571]
[1641459498385,3.33922293,149.55,149.46,8.19095571]
[1641459498982,3.33922293,149.55,149.46,12.19095571]
[1641459499186,4.71572976,149.53,149.51,27.66479]
[1641459499384,4.71572976,149.53,149.51,32.84879]
[1641459499985,4.71514992,149.55,149.52,1.37638109]
[1641459501086,3.33863724,149.58,149.52,1.37638109]
[1641459502187,4.0,149.58,149.52,1.37638109]
[1641459502389,4.71520339,149.55,149.52,1.37638109]
[1641459503189,4.0,149.58,149.52,1.37638109]
[1641459503391,7.33877401,149.58,149.52,1.37638109]
[1641459503788,3.33877401,149.58,149.52,1.37638109]
[1641459503989,3.33877401,149.58,149.52,8.31338109]
[1641459504188,18.72811366,149.59,149.52,8.31338109]
[1641459504391,4.7154239,149.54,149.52,8.31338109]
[1641459505190,27.66479,149.6,149.52,6.937]
[1641459505390,4.71490003,149.56,149.53,1.3766686]
[1641459506192,27.66479,149.6,149.53,1.3766686]
[1641459507091,27.66479,149.6,149.53,65.6206686]
[1641459507291,4.71475434,149.54,149.53,65.6206686]
[1641459507491,4.71475434,149.54,149.53,1.3766686]
[1641459508394,15.38271046,149.59,149.52,6.937]
[1641459508594,15.38271046,149.59,149.52,70.8826]
[1641459509094,4.71475319,149.54,149.53,1.37669797]
[1641459510296,15.38271046,149.59,149.53,1.37669797]
[1641459510697,12.04465385,149.59,149.52,10.937]
[1641459510897,12.04465385,149.59,149.52,6.937]
[1641459511097,12.04465385,149.59,149.52,67.5469]
[1641459511298,27.66479,149.6,149.52,67.5469]
[1641459511498,3.33726714,149.59,149.53,1.37707487]
[1641459512698,3.33726714,149.59,149.52,73.9739]
[1641459512903,15.38071118,149.59,149.52,73.9739]
[1641459513600,15.38071118,149.59,149.53,1.37672706]
[1641459514400,3.33726714,149.59,149.52,73.9739]
[1641459515901,27.66479,149.6,149.53,1.37672756]
[1641459516704,3.33762433,149.59,149.53,8.19104305]
[1641459517103,4.0,149.58,149.53,8.19104305]
[1641459517305,27.66479,149.6,149.53,8.19104305]
[1641459517901,31.66479,149.6,149.53,8.19104305]
[1641459518102,4.0,149.59,149.53,8.19104305]
[1641459518302,7.33775232,149.59,149.53,8.19104305]
[1641459518502,4.0,149.58,149.53,8.19104305]
[1641459518703,7.33775232,149.59,149.53,8.19104305]
[1641459519406,3.33758435,149.57,149.53,8.19104305]
[1641459520005,4.0,149.58,149.53,1.37672756]
[1641459520204,15.38286012,149.59,149.53,1.37672756]
[1641459520404,19.38286012,149.59,149.53,1.37672756]
[1641459521204,15.38286012,149.59,149.52,4.424]
[1641459521407,15.38286012,149.59,149.52,5.80094196]
[1641459522006,3.33805328,149.59,149.53,1.37694196]
[1641459523309,7.33805328,149.59,149.53,1.37694196]
[1641459523510,4.0,149.57,149.53,1.37694196]
[1641459523710,7.33805328,149.59,149.53,1.37694196]
[1641459524111,4.0,149.57,149.51,27.66479]
[1641459524311,4.0,149.57,149.52,1.37698284]
[1641459524911,3.33805328,149.56,149.51,27.66479]
[1641459526414,4.0,149.57,149.52,1.37690801]
[1641459526614,4.0,149.58,149.52,1.37690801]
[1641459526912,4.0,149.55,149.52,1.37690801]
[1641459527111,75.32225294,149.59,149.51,27.66479]
[1641459527112,4.0,149.56,149.51,27.66479]
[1641459527713,7.33858651,149.57,149.51,27.66479]
[1641459528213,3.33858651,149.55,149.52,1.37684315]
[1641459529214,4.0,149.57,149.51,27.66479]
[1641459529413,7.33876348,149.56,149.51,27.66479]
[1641459529613,3.33876348,149.56,149.51,27.66479]
[1641459530013,7.33876348,149.56,149.51,27.66479]
[1641459530413,4.0,149.56,149.51,27.66479]
[1641459530614,3.33864403,149.55,149.52,1.37684539]
[1641459531312,3.33864403,149.55,149.51,27.66479]
[1641459531513,12.04405294,149.58,149.51,27.66479]
[1641459532116,16.04405294,149.58,149.52,1.3768707]
[1641459532417,15.38254515,149.58,149.52,1.3768707]
[1641459532616,15.38254515,149.58,149.52,6.3218707]
[1641459532815,19.38254515,149.58,149.52,4.945]
[1641459533217,15.38254515,149.58,149.52,4.945]
[1641459534116,3.33849221,149.57,149.53,1.37687302]
[1641459534816,12.04405294,149.59,149.53,1.37687302]
[1641459535016,3.33786854,149.59,149.53,65.4846]
[1641459535916,27.66479,149.6,149.53,65.4846]
[1641459536116,27.66479,149.6,149.54,1.37697167]
[1641459536518,103.3546528,149.62,149.54,5.37697167]
[1641459536718,37.7532528,149.62,149.54,5.37697167]
[1641459536918,3.33725524,149.59,149.53,65.4846]
[1641459537522,3.33725524,149.59,149.54,27.66479]
[1641459537722,37.7532528,149.62,149.54,27.66479]
[1641459537923,53.13046665,149.62,149.54,29.04195673]
[1641459538123,15.37721385,149.62,149.54,29.04195673]
[1641459539024,15.37721385,149.62,149.55,1.37716673]
[1641459539725,15.37721385,149.62,149.55,6.07816673]
[1641459539924,15.37721385,149.62,149.55,4.701]
[1641459540827,15.37721385,149.62,149.56,1.37714585]
[1641459541727,15.37721385,149.62,149.54,32.07479]
[1641459542328,15.37721385,149.62,149.55,1.37714599]
[1641459543327,15.37721385,149.62,149.54,27.66479]
[1641459544129,15.37721385,149.62,149.55,1.37716469]
[1641459544531,19.37721385,149.62,149.55,1.37716469]
[1641459544732,15.37721385,149.62,149.55,1.37716469]
[1641459545232,4.0,149.6,149.55,1.37716469]
[1641459545632,4.0,149.6,149.54,27.66479]
[1641459547136,3.33671601,149.59,149.55,1.37617333]
[1641459547734,31.66479,149.6,149.55,1.37617333]
[1641459547936,31.66479,149.6,149.54,27.66479]
[1641459548636,4.0,149.59,149.54,27.66479]
[1641459548836,3.33521544,149.59,149.55,1.3761952]
[1641459549938,27.66479,149.6,149.54,27.66479]
[1641459550339,31.66479,149.6,149.54,27.66479]
[1641459550739,27.66479,149.6,149.54,27.66479]
[1641459550939,3.3372597,149.59,149.55,1.37707611]
[1641459551540,31.66479,149.6,149.54,27.66479]
[1641459551740,32.24879,149.6,149.54,27.66479]
[1641459552142,4.0,149.58,149.52,66.6001]
[1641459552344,4.0,149.56,149.46,64.8724]
[1641459552545,8.802,149.56,149.47,63.3692]
[1641459552748,4.0,149.54,149.47,63.3692]
[1641459553145,4.0,149.53,149.43,68.4219]
[1641459553343,5.461,149.53,149.44,62.3897]
[1641459554248,3.33794718,149.52,149.44,81.78594486]
[1641459555250,27.66479,149.54,149.45,1.37675375]
[1641459555846,27.66479,149.54,149.46,27.66479]
[1641459557147,27.66479,149.54,149.47,1.37675375]
[1641459557750,31.66479,149.54,149.47,1.37675375]
[1641459558149,4.0,149.53,149.47,1.37675375]
[1641459558349,10.957,149.53,149.47,1.37675375]
[1641459558951,10.957,149.53,149.45,1.37675375]
[1641459559150,6.957,149.53,149.45,1.37675375]
[1641459559349,27.66479,149.54,149.45,1.37675375]
[1641459559550,31.66479,149.54,149.45,8.41175375]
[1641459559750,27.66479,149.54,149.45,8.41175375]
[1641459561053,27.66479,149.54,149.46,1.37675375]
[1641459561354,27.66479,149.54,149.46,5.37675375]
[1641459561753,27.66479,149.54,149.48,27.66479]
[1641459561954,27.66479,149.54,149.48,32.88679]
[1641459562756,27.66479,149.54,149.49,1.37675375]
[1641459567063,27.66479,149.54,149.48,27.66479]
[1641459568266,4.0,149.52,149.44,62.3897]
[1641459568666,4.0,149.53,149.44,62.3897]
[1641459569367,33.92579,149.54,149.44,62.3897]
[1641459569768,65.59058,149.54,149.44,62.3897]
[1641459569968,61.59058,149.54,149.45,1.36876373]
[1641459570872,4.68927901,149.52,149.45,1.36876373]
[1641459571769,4.68927901,149.53,149.45,1.36876373]
[1641459573971,4.68927901,149.53,149.45,6.83176373]
[1641459574372,4.68927901,149.54,149.45,6.83176373]
[1641459575373,11.37198417,149.56,149.46,1.36876373]
[1641459575876,39.03677417,149.56,149.46,29.03355373]
[1641459576278,4.68927901,149.53,149.46,29.03355373]
[1641459577076,4.68927901,149.53,149.47,8.14493182]
[1641459577277,4.68927901,149.53,149.47,13.08193182]
[1641459577977,4.68927901,149.53,149.48,1.36876373]
[1641459580584,4.68927901,149.54,149.48,1.36876373]
[1641459580884,4.68927901,149.54,149.48,64.76026373]
[1641459581482,4.68927901,149.54,149.48,63.3915]
[1641459582382,4.68927901,149.52,149.49,1.36876373]
[1641459583385,4.68927901,149.51,149.49,1.36876373]
[1641459586789,4.68927901,149.5,149.45,1.36876373]
[1641459586988,4.68927901,149.5,149.45,8.18407364]
[1641459589592,27.66479,149.53,149.45,19.38820359]
[1641459589593,4.68927901,149.52,149.45,19.38820359]
[1641459590794,4.0,149.51,149.45,19.38820359]
[1641459591395,4.68927901,149.52,149.45,19.38820359]
[1641459591594,4.0,149.5,149.45,19.38820359]
[1641459591793,4.68927901,149.52,149.45,19.38820359]
[1641459592896,4.68927901,149.51,149.45,8.18407364]
[1641459594195,4.68927901,149.51,149.46,27.66479]
[1641459594395,4.68927901,149.51,149.46,34.18279]
[1641459594795,4.68927901,149.53,149.46,34.18279]
[1641459595395,4.68927901,149.53,149.46,6.518]
[1641459595598,4.68927901,149.53,149.47,8.18407364]
[1641459596497,4.68927901,149.53,149.47,1.36876373]
[1641459597096,4.68927901,149.52,149.47,1.36876373]
[1641459598299,4.68927901,149.52,149.47,29.03355373]
[1641459599002,4.68927901,149.53,149.48,8.18407364]
[1641459600103,4.68927901,149.53,149.45,19.38803938]
[1641459601002,4.68927901,149.53,149.49,4.0]
[1641459601209,7.901e-05,149.53,149.49,8.525]
[1641459601604,27.66479,149.56,149.49,8.525]
[1641459601803,27.66479,149.58,149.49,8.525]
[1641459602004,27.66479,149.58,149.5,71.47296373]
[1641459602202,27.66479,149.58,149.5,99.13775373]
[1641459602903,27.66479,149.58,149.5,95.13775373]
[1641459603303,27.66479,149.58,149.51,8.18407364]
[1641459603703,27.66479,149.58,149.53,4.0]
[1641459603903,37.7532528,149.63,149.51,17.35307364]
[1641459604305,37.7532528,149.63,149.55,27.66479]
[1641459604503,37.7532528,149.63,149.56,66.9155]
[1641459604704,37.7532528,149.64,149.56,66.9155]
[1641459606106,41.08896565,149.64,149.57,1.36876373]
[1641459606307,15.37314112,149.64,149.58,27.66479]
[1641459606605,19.37314112,149.64,149.58,27.66479]
[1641459606808,15.37314112,149.64,149.58,27.66479]
[1641459607208,3.33571285,149.63,149.59,1.36876373]
[1641459608210,3.33571285,149.63,149.58,27.66479]
[1641459608411,15.37314112,149.64,149.58,27.66479]
[1641459610114,3.33571285,149.64,149.59,1.37759279]
[1641459610313,3.33571285,149.64,149.59,6.95559279]
[1641459611116,15.37314112,149.65,149.59,5.578]
[1641459611716,15.37314112,149.65,149.58,27.66479]
[1641459613215,15.37314112,149.65,149.59,1.37763677]